fUSD/lending_fUSD_20250702
["ID","MTS","AMOUNT","RATE_DAILY","PERIOD"]
[369092813,1751470521319,-150.0,0.00050249,120]
[369092814,1751470521345,-250.0,0.00050249,120]
[369092815,1751470521377,-500.0,0.00050249,120]
[369092816,1751470521405,-500.0,0.00050249,120]
[369092817,1751470521431,-300.0,0.00050249,120]
[369092818,1751470521459,-150.0,0.00050249,120]
[369092819,1751470521488,-954517.55664137,0.00051,120]
[369092820,1751470521515,-1000000.0,0.00051,120]
[369092821,1751470521542,-12016.82975198,0.00051,120]
[369092822,1751470521569,-5212.15995416,0.00051,120]
[369092823,1751470521596,-3625.0,0.00051,120]
[369092824,1751470521622,-200.0,0.00051084,120]
[369092825,1751470521648,-1519.93,0.00051232,120]
[369092826,1751470521675,-1000000.0,0.0005125,120]
[369092827,1751470521705,-1000000.0,0.000515,120]
[369092828,1751470521732,-1000000.0,0.000515,120]
[369092829,1751470521759,-1519.93,0.00051506,120]
[369092830,1751470521785,-2967.85443837,0.00051599,120]
[369092831,1751470521811,-8783.31921412,0.00051633,120]
[369092832,1751470528305,-500.0,0.00043835,120]
[369092833,1751470528334,-500.0,0.00044109,120]
[369092834,1751470528363,-500.0,0.00044383,120]
[369092835,1751470528390,-500.0,0.00044657,120]
[369092836,1751470528418,-500.0,0.00044931,120]
[369092837,1751470528446,-537.52517059,0.00045205,120]
[369092838,1751470528481,-150.0,0.00050249,120]
[369092839,1751470528507,-204.17207278,0.00050249,120]
[369092840,1751470528532,-500.0,0.00050249,120]
[369092841,1751470528557,-500.0,0.00050249,120]
[369092842,1751470528583,-500.0,0.00050249,120]
[369092843,1751470528609,-150.0,0.00050249,120]
[369092844,1751470528634,-158.21164644,0.00050249,120]
[369092845,1751470528661,-5912.53,0.000505,120]
[369092846,1751470528689,-1216.68078588,0.00051633,120]
[369092847,1751470528717,-4391.22247721,0.00051698,120]
[369092848,1751470528744,-3290.66888411,0.00051698,120]
[369092849,1751470528774,-1000000.0,0.0005175,120]
[369092850,1751470528802,-500.0,0.00051755,60]
[369092851,1751470528830,-500.0,0.00051755,60]
[369092852,1751470528857,-500.0,0.00051755,60]
[369092853,1751470528883,-500.0,0.00051755,60]
[369092854,1751470528910,-381.95202855,0.00051755,60]
[369092855,1751470528937,-150.0,0.00051755,60]
[369092856,1751470528966,-150.0,0.00051755,60]
[369092857,1751470528994,-209.04793915,0.00051755,60]
[369092858,1751470529022,-500.0,0.00051755,60]
[369092859,1751470529049,-500.0,0.00051755,60]
[369092860,1751470529075,-500.0,0.00051755,60]
[369092861,1751470529102,-500.0,0.00051755,60]
[369092862,1751470529130,-500.0,0.00051755,60]
[369092863,1751470529158,-500.0,0.00051755,60]
[369092864,1751470529185,-500.0,0.00051755,60]
[369092865,1751470529212,-243.0,0.00051755,60]
[369092866,1751470529239,-150.0,0.00051755,60]
[369092867,1751470529265,-200.0,0.00051755,60]
[369092868,1751470529292,-151.03963705,0.00051755,60]
[369092869,1751470529320,-150.0,0.00051755,60]
[369092870,1751470529347,-200.0,0.00051755,60]
[369092871,1751470529373,-150.0,0.00051755,60]
[369092872,1751470529705,-500.0,0.00051755,60]
[369092873,1751470529734,-500.0,0.00051755,60]
[369092874,1751470529761,-500.0,0.00051755,60]
[369092875,1751470529792,-500.0,0.00051755,60]
[369092876,1751470529822,-500.0,0.00051755,60]
[369092877,1751470529851,-500.0,0.00051755,60]
[369092878,1751470529880,-500.0,0.00051755,60]
[369092879,1751470529910,-500.0,0.00051755,60]
[369092880,1751470529938,-500.0,0.00051755,60]
[369092881,1751470529966,-500.0,0.00051755,60]
[369092882,1751470529996,-500.0,0.00051755,60]
[369092883,1751470530027,-462.0,0.00051755,60]
[369092884,1751470530055,-150.0,0.00051755,60]
[369092885,1751470530085,-150.0,0.00051755,60]
[369092886,1751470530112,-150.0,0.00051755,60]
[369092887,1751470530141,-150.0,0.00051755,60]
[369092888,1751470530167,-198.0,0.00051755,60]
[369092889,1751470530195,-150.0,0.00051755,60]
[369092890,1751470530222,-538.0,0.00051755,60]
[369092891,1751470530250,-538.0,0.00051755,60]
[369092892,1751470530276,-538.0,0.00051755,60]
[369092893,1751470530304,-538.0,0.00051755,60]
[369092894,1751470530331,-538.0,0.00051755,60]
[369092895,1751470530357,-538.0,0.00051755,60]
[369092896,1751470530384,-538.0,0.00051755,60]
[369092897,1751470530412,-538.0,0.00051755,60]
[369092898,1751470530440,-538.0,0.00051755,60]
[369092899,1751470530468,-538.0,0.00051755,60]
[369092900,1751470530496,-538.0,0.00051755,60]
[369092901,1751470530523,-538.0,0.00051755,60]
[369092902,1751470530550,-538.0,0.00051755,60]
[369092903,1751470530579,-538.0,0.00051755,60]
[369092904,1751470530608,-538.0,0.00051755,60]
[369092905,1751470530635,-538.0,0.00051755,60]
[369092906,1751470530662,-538.0,0.00051755,60]
[369092907,1751470530693,-538.0,0.00051755,60]
[369092908,1751470530719,-538.0,0.00051755,60]
[369092909,1751470530749,-538.0,0.00051755,60]
[369092910,1751470530778,-538.0,0.00051755,60]
[369092911,1751470530805,-538.0,0.00051755,60]
[369092912,1751470530831,-538.0,0.00051755,60]
[369092913,1751470530858,-544.33122431,0.00051755,60]
[369092914,1751470530886,-1534.0,0.00051755,60]
[369092915,1751470530914,-1534.0,0.00051755,60]
[369092916,1751470530943,-1534.0,0.00051755,60]
[369092917,1751470530973,-1534.0,0.00051755,60]
[369092918,1751470531003,-1534.0,0.00051755,60]
[369092919,1751470531033,-1534.0,0.00051755,60]
[369092920,1751470531063,-1534.0,0.00051755,60]
[369092921,1751470531094,-1534.0,0.00051755,60]
[369092922,1751470531124,-1534.0,0.00051755,60]
[369092923,1751470531157,-1534.0,0.00051755,60]
[369092924,1751470531185,-1534.0,0.00051755,60]
[369092925,1751470531214,-1534.0,0.00051755,60]
[369092926,1751470531242,-1534.0,0.00051755,60]
[369092927,1751470531270,-1534.0,0.00051755,60]
[369092928,1751470531297,-1534.0,0.00051755,60]
[369092929,1751470531325,-1534.0,0.00051755,60]
[369092930,1751470531351,-1534.0,0.00051755,60]
[369092931,1751470531378,-1534.0,0.00051755,60]
[369092932,1751470531406,-1534.0,0.00051755,60]
[369092933,1751470531433,-1534.0,0.00051755,60]
[369092934,1751470531459,-1534.0,0.00051755,60]
[369092935,1751470531486,-1534.0,0.00051755,60]
[369092936,1751470531511,-1534.0,0.00051755,60]
[369092937,1751470531539,-1544.58539946,0.00051755,60]
[369092938,1751470531566,-150.0,0.00051755,60]
[369092939,1751470531593,-150.0,0.00051755,60]
[369092940,1751470531619,-150.0,0.00051755,60]
[369092941,1751470531646,-150.0,0.00051755,60]
[369092942,1751470531673,-150.0,0.00051755,60]
[369092943,1751470531704,-250.0,0.00051755,60]
[369092944,1751470531731,-150.0,0.00051755,60]
[369092945,1751470531758,-150.0,0.00051755,60]
[369092946,1751470531786,-150.0,0.00051755,60]
[369092947,1751470531812,-150.0,0.00051755,60]
[369092948,1751470531838,-150.0,0.00051755,60]
[369092949,1751470531864,-250.0,0.00051755,60]
[369092950,1751470531892,-150.0,0.00051755,60]
[369092951,1751470531918,-150.0,0.00051755,60]
[369092952,1751470531945,-500.0,0.00051755,60]
[369092953,1751470531974,-500.0,0.00051755,60]
[369092954,1751470532002,-500.0,0.00051755,60]
[369092955,1751470532030,-500.0,0.00051755,60]
[369092956,1751470532058,-500.0,0.00051755,60]
[369092957,1751470532085,-500.0,0.00051755,60]
[369092958,1751470532114,-500.0,0.00051755,60]
[369092959,1751470532142,-500.0,0.00051755,60]
[369092960,1751470532170,-500.0,0.00051755,60]
[369092961,1751470532199,-500.0,0.00051755,60]
[369092962,1751470532228,-500.0,0.00051755,60]
[369092963,1751470532256,-500.0,0.00051755,60]
[369092964,1751470532283,-500.0,0.00051755,60]
[369092965,1751470532310,-500.0,0.00051755,60]
[369092966,1751470532337,-500.0,0.00051755,60]
[369092967,1751470532364,-500.0,0.00051755,60]
[369092968,1751470532393,-557.87827927,0.00051755,60]
[369092969,1751470532437,-150.0,0.00051755,60]
[369092970,1751470532466,-150.0,0.00051755,60]
[369092971,1751470532495,-150.0,0.00051755,60]
[369092972,1751470532524,-150.0,0.00051755,60]
[369092973,1751470532553,-150.0,0.00051755,60]
[369092974,1751470532582,-250.0,0.00051755,60]
[369092975,1751470532609,-150.0,0.00051755,60]
[369092976,1751470532637,-150.0,0.00051755,60]
[369092977,1751470532664,-150.0,0.00051755,60]
[369092978,1751470532693,-150.0,0.00051755,60]
[369092979,1751470532721,-150.0,0.00051755,60]
[369092980,1751470532748,-250.0,0.00051755,60]
[369092981,1751470532777,-500.0,0.00051755,60]
[369092982,1751470532806,-500.6980172,0.00051755,60]
[369092983,1751470532835,-500.0,0.00051755,60]
[369092984,1751470532869,-500.0,0.00051755,60]
[369092985,1751470532904,-478.0,0.00051755,60]
[369092986,1751470532933,-150.0,0.00051755,60]
[369092987,1751470532961,-150.0,0.00051755,60]
[369092988,1751470532990,-150.0,0.00051755,60]
[369092989,1751470533019,-150.0,0.00051755,60]
[369092990,1751470533048,-150.0,0.00051755,60]
[369092991,1751470533078,-200.0,0.00051755,60]
[369092992,1751470533109,-150.0,0.00051755,60]
[369092993,1751470533142,-200.0,0.00051755,60]
[369092994,1751470533174,-1519.93,0.0005178,120]
[369092995,1751470533209,-3000.0,0.000518,90]
[369092996,1751470533241,-1000.0,0.0005199,120]
[369092997,1751470533272,-1000000.0,0.00052,120]
[369092998,1751470533302,-2593.79,0.00052,120]
[369092999,1751470533333,-800.0,0.00052,120]
[369093000,1751470533362,-1000000.0,0.00052,120]
[369093001,1751470533393,-219.10752135,0.00052,120]
[369093002,1751470533656,-5000.0,0.00052,120]
[369093003,1751470533695,-6913.12477102,0.00052,120]
[369093004,1751470533726,-1000.0,0.00052,120]
[369093005,1751470533758,-1000000.0,0.00052,120]
[369093006,1751470533789,-10000.0,0.00052,120]
[369093007,1751470533820,-3625.0,0.00052,120]
[369093008,1751470533848,-1519.93,0.00052054,120]
[369093009,1751470533880,-999.0,0.00052054,120]
[369093010,1751470535549,6021.77,0.000505,120]
[369093011,1751470535582,854850.80414563,0.00052,120]
[369093013,1751470674643,154.13,0.00013699,2]
[369093064,1751470939310,166.127515,0.00016438,2]
[369093103,1751471431586,-280.5757356,0.0002458,2]
[369093104,1751471431596,-154.13,0.00024907,2]
[369093105,1751471431608,-503.0,0.00026521,2]
[369093106,1751471431619,-483.0,0.00027,7]
[369093107,1751471431630,-117.52859997,0.00027397,120]
[369093108,1751471431642,-182.47140003,0.00027397,120]
[369093109,1751471431652,-483.0,0.00027671,14]
[369093110,1751471431663,-168.0,0.00028742,2]
[369093111,1751471431673,-119.32648222,0.00028767,14]
[369093112,1751471431685,-363.67351778,0.00028767,14]
[369093113,1751471431695,-250.0,0.00028984,2]
[369093114,1751471431706,-178.0,0.00029,120]
[369093115,1751471431716,-153.0,0.00029,120]
[369093116,1751471431726,-437.0,0.00029535,2]
[369093117,1751471431737,-526.0,0.00030024,2]
[369093118,1751471431747,-523.0,0.00030024,2]
[369093119,1751471431757,-270.0,0.00030026,2]
[369093120,1751471431767,-359.0,0.00030026,2]
[369093121,1751471431777,-1600.0,0.00030204,2]
[369093122,1751471431787,-483.0,0.00030205,14]
[369093123,1751471431798,-168.0,0.00030237,2]
[369093124,1751471431808,-208.37056723,0.000309,23]
[369093125,1751471431818,-99.49052959,0.00030908,2]
[369093126,1751471431848,-503.18947041,0.00030908,2]
[369093127,1751471431859,-166.88,0.00030988,2]
[369093128,1751471431870,-250.0,0.00030999,2]
[369093129,1751471431880,-54.91428118,0.00031,12]
[369093130,1751471431913,-405.08571882,0.00031,12]
[369093131,1751471431923,-460.0,0.00031,12]
[369093132,1751471431933,-208.37056715,0.0003115,24]
[369093133,1751471431943,-200.0,0.00031178,7]
[369093134,1751471431953,-2038.31,0.00031204,2]
[369093135,1751471431963,-1006.3,0.00031219,2]
[369093136,1751471431973,-1727.93371519,0.00031224,2]
[369093137,1751471431986,-53.00628481,0.00031224,2]
[369093138,1751471431996,-2137.2456057,0.00031248,2]
[369093139,1751471432008,-1589.40795036,0.00031248,2]
[369093140,1751471432025,-20173.34644394,0.00031248,2]
[369093141,1751471432035,-150.0,0.00031336,2]
[369093142,1751471432046,-159.83,0.00031361,2]
[369093143,1751471432057,-1000.0,0.00031374,2]
[369093145,1751471432067,-208.37056715,0.000314,24]
[369093148,1751471432077,-248.48,0.00031425,2]
[369093150,1751471432087,-171.23,0.00031445,2]
[369093152,1751471432096,-5000.0,0.00031458,2]
[369093154,1751471432106,-2370.77024786,0.00031472,2]
[369093156,1751471432123,-529.99975214,0.00031472,2]
[369093158,1751471432133,-293.86373723,0.00031523,2]
[369093160,1751471432145,-273.935,0.00031523,2]
[369093163,1751471432157,-653.77126277,0.00031523,2]
[369093164,1751471432167,-72.08046042,0.00031526,2]
[369093165,1751471432180,-177.91953958,0.00031526,2]
[369093166,1751471432191,-250.0,0.00031616,2]
[369093167,1751471432201,-140.52916042,0.0003165,25]
[369093168,1751471432214,-67.84140673,0.0003165,25]
[369093169,1751471432225,-151.68,0.00031746,2]
[369093170,1751471432236,-151.68,0.00031754,2]
[369093171,1751471432247,-131.49413503,0.00031763,30]
[369093172,1751471432260,-37.26886497,0.00031763,30]
[369093173,1751471432270,-151.68,0.00031763,2]
[369093174,1751471432281,-1130.758,0.00031763,30]
[369093175,1751471432291,-11.14313503,0.00031771,2]
[369093176,1751471432303,-140.53686497,0.00031771,2]
[369093177,1751471432313,-151.68,0.0003178,2]
[369093178,1751471432324,-272.9,0.00031785,2]
[369093179,1751471432335,-151.68,0.00031788,2]
[369093180,1751471432344,-151.68,0.00031796,2]
[369093181,1751471432355,-151.68,0.00031805,2]
[369093182,1751471432364,-151.68,0.00031813,2]
[369093183,1751471432376,-97.06313504,0.00031821,2]
[369093190,1751471438171,-200.2275498,0.00031662,2]
[369093191,1751471438181,-54.61686496,0.00031821,2]
[369093192,1751471438191,-151.68,0.0003183,2]
[369093193,1751471438200,-151.68,0.00031838,2]
[369093194,1751471438209,-151.68,0.00031846,2]
[369093195,1751471438219,-151.68,0.00031855,2]
[369093196,1751471438228,-151.68,0.00031863,2]
[369093197,1751471438325,-151.68,0.00031871,2]
[369093198,1751471438335,-151.68,0.0003188,2]
[369093199,1751471438344,-151.68,0.00031888,2]
[369093200,1751471438353,-795.583057,0.00031889,16]
[369093201,1751471438362,-151.68,0.00031896,2]
[369093202,1751471438372,-208.37056715,0.000319,25]
[369093203,1751471438381,-151.68,0.00031905,2]
[369093204,1751471438391,-460.0,0.00032,12]
[369093205,1751471438404,-460.0,0.00032,12]
[369093206,1751471438413,-208.37056715,0.0003215,26]
[369093207,1751471438422,-150.0,0.00032173,2]
[369093208,1751471438431,-1283.99,0.00032189,2]
[369093209,1751471438441,-483.0,0.00032219,14]
[369093210,1751471438450,-460.0,0.000323,12]
[369093211,1751471438459,-460.0,0.000324,12]
[369093212,1751471438469,-208.37056715,0.000324,26]
[369093213,1751471438478,-167.19,0.0003247,2]
[369093214,1751471438488,-460.0,0.000325,12]
[369093215,1751471438498,-14158.48082679,0.00032522,11]
[369093216,1751471438509,-6010.14972516,0.00032522,11]
[369093217,1751471438533,-1687.20546924,0.00032522,11]
[369093218,1751471438544,-490.0,0.00032522,11]
[369093219,1751471438556,-2680.83712567,0.00032522,11]
[369093220,1751471438569,-1918.8886185,0.00032522,11]
[369093221,1751471438582,-1086.596,0.00032522,11]
[369093224,1751471439837,-731.00357604,0.00032522,11]
[369093225,1751471439849,-1248.99642396,0.00032522,11]
[369093226,1751471439862,-2170.91114267,0.00032522,11]
[369093233,1751471440367,-14179.72123425,0.00032522,11]
[369093234,1751471440383,-45553.0795765,0.00032522,11]
[369093235,1751471440497,-97422.59028122,0.00032522,11]
[369093236,1751471440507,-13131.06668597,0.00032522,11]
[369093253,1751471445547,-2711.30614914,0.00032522,11]
[369093259,1751471445747,-647.46570571,0.00032522,11]
[369093260,1751471445941,-320.8157845,0.00032522,11]
[369093268,1751471790879,158.08,0.00013699,2]
[369093275,1751472196758,195.758833,0.00016438,2]
[369093276,1751472197087,195.758833,0.00016438,2]
[369093277,1751472197941,154.789387,0.00016438,2]
[369093279,1751472198551,582.544568,0.00016438,2]
[369093280,1751472199275,582.544568,0.00016438,2]
[369093281,1751472199349,582.544568,0.00016438,2]
[369093282,1751472199419,157.485262,0.00016438,2]
[369093283,1751472199579,582.544568,0.00016438,2]
[369093284,1751472200398,582.544568,0.00016438,2]
[369093285,1751472200526,582.544568,0.00016705,2]
[369093286,1751472204421,524.968983,0.00016438,2]
[369093287,1751472205025,590.413229,0.00016438,2]
[369093288,1751472205595,590.413229,0.00016438,2]
[369093289,1751472205692,590.413229,0.00016438,2]
[369093290,1751472206614,524.968983,0.00016438,2]
[369093291,1751472206946,524.968983,0.00016438,2]
[369093292,1751472207260,524.968983,0.00016438,2]
[369093293,1751472207553,524.968983,0.00016438,2]
[369093294,1751472207873,524.968983,0.00016705,2]
[369093297,1751472221875,590.413229,0.00016438,2]
[369093298,1751472222193,590.413229,0.00016438,2]
[369093299,1751472224605,590.413229,0.00016705,2]
[369093348,1751472464322,-158.08,0.00023973,2]
[369093349,1751472464347,-182.74943,0.0002407,2]
[369093350,1751472464372,-946.52208782,0.00025015,2]
[369093351,1751472464399,-182.74943,0.0002507,2]
[369093352,1751472464425,-163.24,0.00025115,2]
[369093353,1751472464447,-182.74943,0.0002607,2]
[369093354,1751472464474,-366.0,0.00027,7]
[369093355,1751472464498,-182.74943,0.0002707,2]
[369093356,1751472464520,-366.0,0.00027671,14]
[369093357,1751472464546,-182.74944,0.0002807,2]
[369093364,1751472556720,175.84849,0.0002807,2]
[369093375,1751472605056,572.63336,0.0002807,2]
[369093388,1751472632068,-627.0,0.00028469,2]
[369093389,1751472632078,-300.0,0.00028539,120]
[369093390,1751472632088,-250.0,0.00028609,2]
[369093391,1751472632099,-516.0,0.00028749,2]
[369093392,1751472632110,-809.0,0.00028749,2]
[369093393,1751472632120,-366.0,0.00028767,14]
[369093394,1751472632130,-157.88,0.00029406,2]
[369093395,1751472632140,-315.08017465,0.00029454,2]
[369093396,1751472632149,-168.0,0.00029554,2]
[369093397,1751472632159,-303.55,0.00029874,2]
[369093398,1751472632169,-303.31,0.00029874,2]
[369093399,1751472632178,-304.73,0.00029874,2]
[369093400,1751472632187,-1600.0,0.00030017,2]
[369093402,1751472632197,-304.91,0.00030018,2]
[369093404,1751472632207,-300.34,0.00030018,2]
[369093406,1751472632217,-301.01,0.00030057,2]
[369093408,1751472632227,-572.63337,0.0003007,2]
[369093410,1751472632236,-371.0,0.00030205,14]
[369093412,1751472632246,-1091.0,0.00030226,2]
[369093414,1751472632256,-302.73,0.00030227,2]
[369093416,1751472632266,-300.48,0.00030227,2]
[369093418,1751472632276,-315.08017463,0.00030228,2]
[369093420,1751472632286,-166.15847903,0.00030271,2]
[369093422,1751472632300,-306.0,0.00030293,2]
[369093424,1751472632311,-1414.0,0.00030352,2]
[369093426,1751472632322,-289.0,0.00030401,2]
[369093428,1751472632333,-205.87998725,0.00030401,2]
[369093430,1751472632343,-830.62216632,0.00030453,2]
[369093432,1751472632353,-246.642,0.00030477,2]
[369093434,1751472632363,-829.0,0.00030503,2]
[369093436,1751472632373,-300.0,0.00030503,2]
[369093438,1751472632383,-300.31,0.00030532,2]
[369093440,1751472632398,-301.95,0.00030532,2]
[369093443,1751472632409,-304.21,0.00030532,2]
[369093444,1751472632418,-311.75,0.00030564,2]
[369093446,1751472632427,-168.65,0.00030718,2]
[369093448,1751472632437,-313.61,0.0003074,2]
[369093449,1751472632454,-604.73,0.00030751,2]
[369093450,1751472632464,-260.97,0.00030755,2]
[369093451,1751472632475,-250.0,0.00030778,2]
[369093452,1751472632487,-168.0,0.00030874,2]
[369093453,1751472632499,-3474.20886186,0.000309,23]
[369093454,1751472632509,-300.0,0.000309,2]
[369093455,1751472632519,-4849.91,0.00030934,2]
[369093456,1751472632773,-6545.51258804,0.00030949,2]
[369093457,1751472632863,-194.0,0.00030957,2]
[369093458,1751472632873,-1005.57787813,0.00030986,2]
[369093459,1751472632883,-21120.38,0.00030987,2]
[369093460,1751472632893,-315.08017463,0.00031001,2]
[369093461,1751472632903,-992.24,0.00031013,2]
[369093462,1751472632914,-3474.20886182,0.00031072,24]
[369093463,1751472632924,-7073.44,0.000311,2]
[369093464,1751472632933,-227.94288873,0.00031105,2]
[369093465,1751472632943,-311.1,0.00031105,2]
[369093466,1751472632952,-247.43723805,0.00031105,2]
[369093467,1751472632962,-23900.0,0.00031123,2]
[369093468,1751472632971,-3844.89,0.00031123,2]
[369093469,1751472632981,-150.0,0.00031139,2]
[369093470,1751472632991,-516.0,0.00031153,6]
[369093471,1751472633001,-1000.0,0.00031208,2]
[369093472,1751472633012,-174.40118341,0.00031212,28]
[369093473,1751472633027,-1189.516,0.00031212,28]
[369093474,1751472633038,-3474.20886182,0.00031245,24]
[369093475,1751472633051,-273.46,0.00031257,2]
[369093476,1751472633061,-159.83,0.00031289,2]
[369093477,1751472633071,-250.0,0.00031316,2]
[369093478,1751472633082,-300.0,0.00031316,120]
[369093479,1751472633091,-8430.36,0.00031323,2]
[369093480,1751472633101,-2751.0,0.00031324,120]
[369093481,1751472633111,-150.0,0.00031372,2]
[369093482,1751472633122,-5000.0,0.00031376,2]
[369093483,1751472633141,-953.59,0.00031402,2]
[369093484,1751472633152,-3474.20886182,0.00031417,24]
[369093485,1751472633163,-179.86,0.00031488,2]
[369093486,1751472633174,-3474.20886182,0.0003159,25]
[369093487,1751472633185,-173.28,0.00031605,2]
[369093488,1751472633196,-191.19,0.00031645,120]
[369093489,1751472633206,-173.28,0.00031645,2]
[369093490,1751472633216,-290.25820021,0.00031653,2]
[369093491,1751472633226,-173.28,0.00031685,2]
[369093492,1751472633237,-173.28,0.00031724,2]
[369093493,1751472633247,-3474.20886182,0.00031762,25]
[369093494,1751472633257,-173.28,0.00031764,2]
[369093495,1751472633268,-150.0,0.00031863,2]
[369093496,1751472633279,-150.0,0.00031863,2]
[369093497,1751472633289,-500.0,0.00031863,2]
[369093498,1751472633302,-500.0,0.00031863,2]
[369093499,1751472633313,-500.0,0.00031863,2]
[369093500,1751472633324,-500.0,0.00031863,2]
[369093501,1751472633335,-500.0,0.00031863,2]
[369093502,1751472633346,-150.0,0.00031863,2]
[369093503,1751472633357,-150.0,0.00031863,2]
[369093504,1751472633372,-150.0,0.00031863,2]
[369093505,1751472633391,-150.0,0.00031863,2]
[369093506,1751472633402,-150.0,0.00031863,2]
[369093507,1751472633413,-542.0,0.00031863,2]
[369093508,1751472633423,-150.0,0.00031863,2]
[369093509,1751472633435,-150.0,0.00031863,2]
[369093510,1751472633447,-151.54967156,0.00031863,2]
[369093511,1751472633457,-150.0,0.00031863,2]
[369093512,1751472633470,-150.0,0.00031863,2]
[369093513,1751472633482,-500.0,0.00031863,2]
[369093514,1751472633495,-150.0,0.00031863,2]
[369093515,1751472633505,-150.0,0.00031863,2]
[369093516,1751472633517,-150.0,0.00031863,2]
[369093517,1751472633527,-150.0,0.00031863,2]
[369093518,1751472633539,-799.96,0.00031863,2]
[369093519,1751472633552,-463.0,0.00031863,2]
[369093520,1751472633569,-463.0,0.00031863,2]
[369093521,1751472633591,-799.96,0.00031863,2]
[369093522,1751472633602,-463.0,0.00031863,2]
[369093523,1751472633613,-796.96,0.00031863,2]
[369093524,1751472633624,-924.62,0.00031863,2]
[369093525,1751472633634,-799.81,0.00031863,2]
[369093526,1751472633645,-3474.20886182,0.00031934,25]
[369093527,1751472633655,-1000.0,0.00032,2]
[369093528,1751472633664,-155.195,0.00032,2]
[369093529,1751472633673,-572.63337,0.0003207,2]
[369093530,1751472633682,-3474.20886182,0.00032107,26]
[369093531,1751472633692,-200.0,0.00032137,2]
[369093532,1751472633702,-200.0,0.00032137,2]
[369093533,1751472633711,-500.0,0.00032137,2]
[369093534,1751472633720,-509.50321987,0.00032137,2]
[369093535,1751472633730,-500.0,0.00032137,2]
[369093536,1751472633739,-500.0,0.00032137,2]
[369093537,1751472633748,-500.6980172,0.00032137,2]
[369093538,1751472633758,-150.0,0.00032137,2]
[369093539,1751472633768,-150.0,0.00032137,2]
[369093540,1751472633777,-150.0,0.00032137,2]
[369093541,1751472633787,-150.0,0.00032137,2]
[369093542,1751472633799,-542.0,0.00032137,2]
[369093543,1751472633810,-150.0,0.00032137,2]
[369093544,1751472633819,-150.0,0.00032137,2]
[369093545,1751472633829,-150.0,0.00032137,2]
[369093546,1751472633839,-500.0,0.00032137,2]
[369093547,1751472633849,-150.0,0.00032137,2]
[369093548,1751472633859,-150.0,0.00032137,2]
[369093549,1751472633869,-150.0,0.0003221,2]
[369093550,1751472633878,-366.0,0.00032219,14]
[369093551,1751472633888,-456.54,0.00032274,2]
[369093552,1751472633897,-171.35,0.00032274,2]
[369093553,1751472633907,-456.54,0.00032274,2]
[369093554,1751472633916,-171.35,0.00032274,2]
[369093555,1751472633926,-150.0,0.00032274,2]
[369093556,1751472633936,-709.81,0.00032274,2]
[369093557,1751472633946,-150.0,0.00032274,2]
[369093558,1751472633956,-150.99,0.00032274,2]
[369093559,1751472633965,-171.35,0.00032274,2]
[369093560,1751472633976,-456.54,0.00032274,2]
[369093561,1751472633985,-456.54,0.00032274,2]
[369093562,1751472633995,-165.4,0.00032274,2]
[369093563,1751472634005,-193.06,0.00032274,2]